bitfinex/quotes_ETHUSD_20240910
["timestamp","ask_amount","ask_price","bid_price","bid_amount"]
[1725967834100,1.78470392,2353.5,2353.3,19.53]
[1725967834579,1.78470392,2353.5,2352.9,2.3338]
[1725967834786,1.78470392,2353.6,2353.0,0.38332667]
[1725967834995,4.78470392,2353.6,2353.0,0.46831586]
[1725967835184,4.78470392,2353.6,2353.1,0.42522113]
[1725967836310,1.78470392,2353.5,2353.0,0.38332667]
[1725967836483,1.78470392,2353.5,2352.9,2.3338]
[1725967839017,4.78470392,2353.6,2352.9,3.78375708]
[1725967839380,4.78470392,2353.6,2352.9,7.23621136]
[1725967839620,4.78470392,2353.6,2352.9,7.23603773]
[1725967839786,4.78470392,2353.6,2352.9,7.32102704]
[1725967839990,4.78470392,2353.6,2352.9,7.23603773]
[1725967840821,4.78470392,2353.6,2352.9,7.32102705]
[1725967841037,4.78470392,2353.6,2353.0,3.67230214]
[1725967842084,4.78470392,2353.6,2353.1,2.54878924]
[1725967842281,1.78470392,2353.6,2353.1,2.4638]
[1725967842609,4.78470392,2353.7,2353.1,2.4638]
[1725967842808,4.78470392,2353.7,2353.2,0.61361021]
[1725967843112,4.78470392,2353.7,2353.1,2.4638]
[1725967843113,1.78470392,2353.6,2353.1,2.4638]
[1725967843283,4.78470392,2353.7,2353.1,2.4638]
[1725967843636,3.28417066,2353.6,2353.1,2.4638]
[1725967848802,2.3853,2353.5,2353.1,2.4638]
[1725967849201,1.49946674,2353.4,2352.8,7.48]
[1725967849542,1.49946674,2353.2,2352.7,3.77711159]
[1725967849839,1.49946674,2353.2,2352.7,2.3267]
[1725967856285,1.49946674,2353.2,2352.5,8.92992309]
[1725967856286,1.49946674,2353.0,2352.5,8.92992309]
[1725967856491,2.2978,2352.9,2352.5,8.92992309]
[1725967856695,1.49946674,2352.8,2352.4,20.4225276]
[1725967856857,3.95406674,2352.6,2352.4,0.8925276]
[1725967857190,4.49942009,2352.6,2352.4,0.8925276]
[1725967857393,4.49942009,2352.6,2352.2,1.7850552]
[1725967857685,3.95406674,2352.6,2352.1,7.48]
[1725967861182,3.95406674,2352.6,2352.0,2.4754]
[1725967863265,3.95406674,2352.6,2351.8,22.0259]
[1725967863471,4.82765993,2352.6,2351.9,0.55]
[1725967863970,3.32819319,2352.6,2352.1,2.3664]
[1725967864207,2.4546,2352.6,2352.1,2.3664]
[1725967864790,3.0,2352.7,2352.1,3.86586674]
[1725967865106,3.0,2352.7,2352.1,3.95089215]
[1725967865266,3.0,2352.7,2352.2,0.39508922]
[1725967865473,2.4068,2352.8,2352.2,0.39508922]
[1725967866367,2.4068,2352.8,2352.3,0.08501459]
[1725967867005,2.4068,2352.8,2352.2,0.39508922]
[1725967868189,2.4068,2352.8,2352.2,0.48010392]
[1725967868417,2.4068,2352.8,2352.2,0.39508922]
[1725967869209,2.4068,2352.8,2352.2,0.48010393]
[1725967869573,2.4068,2352.8,2352.2,0.39508922]
[1725967869779,4.64188808,2352.8,2352.1,2.3664]
[1725967880585,2.4007,2352.7,2351.9,2.8954]
[1725967880822,0.70425881,2352.6,2351.9,2.8954]
[1725967881030,3.0,2352.6,2351.9,2.8954]
[1725967881523,5.4007,2352.7,2351.9,2.8954]
[1725967884591,3.89226674,2352.6,2351.9,2.8954]
[1725967885429,3.89226674,2352.6,2351.9,3.57872109]
[1725967885604,3.89226674,2352.6,2351.9,6.95655588]
[1725967885805,3.89226674,2352.6,2351.9,6.27323479]
[1725967886329,3.89226674,2352.6,2351.9,6.9565743]
[1725967886891,3.89226674,2352.6,2351.9,6.27323479]
[1725967887529,3.89226674,2352.6,2351.9,6.95658967]
[1725967887729,3.89226674,2352.6,2352.0,2.79860564]
[1725967888403,3.89226674,2352.6,2351.9,3.57875488]
[1725967888745,3.89226674,2352.6,2351.9,2.8954]
[1725967892259,3.0,2352.7,2352.1,2.4618]
[1725967894357,4.78186512,2352.7,2352.1,2.4618]
[1725967894514,5.87346464,2352.7,2352.1,2.4618]
[1725967895266,1.78186512,2352.6,2352.1,2.4618]
[1725967895425,4.78186512,2352.6,2352.1,2.4618]
[1725967897462,1.78186512,2352.5,2352.1,2.4618]
[1725967897761,4.16126512,2352.5,2351.9,2.8129]
[1725967897919,4.16126512,2352.5,2352.0,0.96856224]
[1725967898125,4.16126512,2352.5,2351.9,2.8129]
[1725967898762,3.28133186,2352.4,2351.9,2.8129]
[1725967899822,1.49946674,2352.4,2351.9,2.8129]
[1725967900033,4.16126512,2352.5,2352.0,0.96850832]
[1725967900232,4.16126512,2352.5,2351.9,2.8129]
[1725967900440,4.16126512,2352.5,2352.0,0.96850624]
[1725967900645,4.16126512,2352.5,2351.9,2.8129]
[1725967900934,1.78186512,2352.5,2352.1,2.4429]
[1725967901176,5.22674392,2352.6,2352.1,2.4429]
[1725967901177,1.78186512,2352.7,2352.2,4.04638713]
[1725967901345,2.22674392,2352.8,2352.4,2.4429]
[1725967901346,1.78186512,2352.8,2352.4,2.4429]
[1725967901854,5.22918781,2352.9,2352.5,0.08501099]
[1725967901855,4.78186512,2352.9,2352.5,0.08501099]
[1725967902057,4.78186512,2352.9,2352.6,2.4429]
[1725967902058,1.78186512,2352.9,2352.6,2.4429]
[1725967902580,1.78186512,2353.2,2352.8,2.4429]
[1725967902758,1.78186512,2353.4,2352.9,0.67938654]
[1725967903281,1.78186512,2353.4,2352.9,2.17885328]
[1725967903778,1.78186512,2353.5,2352.9,0.67938654]
[1725967904341,1.78186512,2353.5,2353.0,0.31222865]
[1725967904573,6.12815455,2353.7,2353.0,0.31222865]
[1725967904574,4.01105293,2353.6,2353.1,2.4096]
[1725967904777,1.78186512,2353.6,2353.1,2.4096]
[1725967907830,3.28133186,2353.7,2353.1,2.4096]
[1725967908073,1.78186512,2353.8,2353.1,2.71849861]
[1725967908465,6.28133186,2353.9,2353.2,0.08498279]
[1725967908632,6.28133186,2353.9,2353.3,2.4802]
[1725967908633,4.49946674,2353.9,2353.3,2.4802]
[1725967908850,4.49946674,2353.9,2353.3,4.5569982]
[1725967908851,3.0,2353.9,2353.3,4.5569982]
[1725967909055,3.0,2354.0,2353.5,3.97966674]
[1725967909257,1.78186512,2354.3,2353.7,2.4802]
[1725967909521,2.56117709,2354.3,2353.7,2.4802]
[1725967909797,0.77931197,2354.3,2353.7,2.4802]
[1725967910298,1.78186512,2354.4,2353.7,2.4802]
[1725967910602,7.31313419,2354.5,2353.7,2.4802]
[1725967911596,3.0,2354.4,2353.7,2.4802]
[1725967913999,3.0,2354.4,2353.7,2.56516153]
[1725967914308,0.85312691,2354.3,2353.7,2.56516153]
[1725967915154,0.85312691,2354.3,2353.7,2.4802]
[1725967915356,4.10179598,2354.3,2353.7,2.4802]
[1725967924344,3.24866907,2354.3,2353.7,2.4802]
[1725967924549,3.0,2354.4,2353.7,2.4802]
[1725967924867,3.0,2354.4,2353.9,2.3867]
[1725967928573,3.0,2354.3,2353.9,2.3867]
[1725967928780,3.0,2354.6,2353.9,2.62537]
[1725967929139,3.24866907,2354.5,2353.9,2.62537]
[1725967929339,3.0,2354.4,2353.9,2.3867]
[1725967930240,1.49945177,2354.3,2353.9,2.3867]
[1725967939315,1.49945177,2354.5,2353.9,2.3867]
[1725967941409,2.3544,2354.4,2353.7,2.42835616]
[1725967941608,1.49945177,2354.3,2353.8,0.55]
[1725967942342,1.49945177,2354.3,2353.9,2.3689]
[1725967943330,4.49945177,2354.5,2353.9,2.3689]
[1725967943548,3.0,2354.4,2353.9,2.7085637]
[1725967943731,4.49945177,2354.6,2353.9,2.7085637]
[1725967943903,4.49945177,2354.6,2353.8,0.63495621]
[1725967943904,3.0,2354.6,2354.1,2.4538]
[1725967944246,3.0,2354.7,2354.3,2.4538]
[1725967944540,6.28131689,2354.8,2354.3,2.4538]
[1725967944711,6.6527119,2354.8,2354.3,2.4538]
[1725967945101,1.78186512,2354.9,2354.4,0.08494637]
[1725967945339,1.78186512,2355.1,2354.6,2.2906]
[1725967945525,1.78186512,2355.0,2354.6,2.2906]
[1725967946327,2.27672492,2355.1,2354.6,2.2906]
[1725967946529,1.78186512,2355.0,2354.6,2.2906]
[1725967946734,4.78186512,2355.0,2354.6,2.2906]
[1725967947844,1.78186512,2354.9,2354.6,2.2906]
[1725967948006,4.78186512,2354.9,2354.6,2.2906]
[1725967953625,1.78186512,2354.8,2354.6,2.2906]
[1725967954325,4.78186512,2354.9,2354.6,2.2906]
[1725967954527,1.78186512,2354.8,2354.6,2.2906]
[1725967954763,4.78186512,2354.9,2354.6,2.2906]
[1725967954951,3.0,2354.9,2354.6,2.2906]
[1725967955145,1.78186512,2355.0,2354.6,2.52815464]
[1725967955345,1.78186512,2355.0,2354.7,2.4603]
[1725967955546,1.78186512,2355.1,2354.7,2.4603]
[1725967955752,3.0,2355.1,2354.9,2.4603]
[1725967955954,1.78186512,2355.2,2354.9,2.4603]
[1725967956490,1.78186512,2355.3,2354.9,2.4603]
[1725967957635,4.78186512,2355.3,2354.9,2.4603]
[1725967960444,3.0,2355.3,2354.9,2.4603]
[1725967960649,3.0,2355.3,2354.9,2.70633]
[1725967961342,1.78186512,2355.5,2354.9,2.70633]
[1725967961643,4.78186512,2355.5,2354.9,2.70633]
[1725967961863,4.78186512,2355.5,2354.9,2.79124805]
[1725967962074,2.22413772,2355.6,2355.0,4.72912175]
[1725967962075,1.78186512,2355.6,2355.0,4.72912175]
[1725967962292,1.78186512,2355.7,2355.1,2.40820457]
[1725967962579,2.4207,2356.2,2355.3,2.3233]
[1725967962580,1.78186512,2355.8,2355.3,2.3233]
[1725967962891,3.72358949,2356.0,2355.4,2.3233]
[1725967962892,1.78186512,2355.9,2355.4,2.3233]
[1725967963392,3.28131689,2355.8,2355.4,2.3233]
[1725967963687,3.0,2355.7,2355.4,2.3233]
[1725967963889,4.49945177,2355.8,2355.4,2.3233]
[1725967966858,5.34971112,2355.8,2355.4,2.3233]
[1725967967188,1.49945177,2355.6,2355.4,2.3233]
[1725967970790,5.34971112,2355.8,2355.4,2.3233]
[1725967973089,3.0,2355.8,2355.4,2.3233]
[1725967973296,3.0,2355.9,2355.4,2.3233]
[1725967973458,1.49945177,2356.1,2355.4,2.3233]
[1725967973775,4.49945177,2356.1,2355.4,2.3233]
[1725967973979,0.62813169,2356.0,2355.4,2.3233]
[1725967974796,1.49945177,2355.9,2355.4,2.3233]
[1725967978518,1.85527482,2356.4,2355.6,2.4366]
[1725967978667,1.85527482,2356.4,2355.5,0.08490134]
[1725967978668,0.0734097,2356.4,2355.8,2.4366]
[1725967978868,1.57286147,2356.4,2355.8,2.4366]
[1725967979904,1.49945177,2356.2,2355.8,2.4366]
[1725967984481,1.49945177,2356.0,2355.8,2.4366]
[1725967985913,1.49945177,2356.0,2355.5,9.7649]
[1725967986301,2.03934274,2356.2,2355.6,2.2849]
[1725967986480,1.49945177,2356.2,2355.6,2.2849]
[1725967986825,4.49945177,2356.3,2355.6,2.2849]
[1725967986984,1.49945177,2356.3,2355.8,2.3175]
[1725967988285,0.0734097,2356.4,2355.8,2.3175]
[1725967989197,3.0734097,2356.4,2355.8,2.3175]
[1725967989499,3.0734097,2356.4,2355.9,2.653999]
[1725967989500,0.0734097,2356.4,2355.9,2.653999]
[1725967989705,0.0734097,2356.4,2355.9,2.2696]
[1725967991031,1.49945177,2356.1,2355.9,2.2696]
[1725967991230,1.49945177,2356.1,2355.7,2.372]
[1725967992013,1.49945177,2355.9,2355.6,19.53]
[1725967992194,1.49945177,2355.9,2355.5,2.3373]
[1725967994055,1.49945177,2355.7,2355.3,2.3145]
[1725967994233,1.49945177,2355.7,2355.1,2.3145]
[1725967994234,3.62361153,2355.7,2355.1,2.3145]
[1725967994621,3.24541635,2355.5,2354.9,2.3145]
[1725967994821,3.24541635,2355.5,2355.0,0.23145]
[1725967995012,3.24541635,2355.5,2354.9,2.3145]
[1725968001580,5.01901375,2355.5,2354.5,2.3079]
[1725968001801,3.24541635,2355.3,2354.6,0.55]
[1725968002136,2.2619,2355.2,2354.6,0.55]
[1725968002562,5.2619,2355.2,2354.6,0.55]
[1725968004377,5.2619,2355.2,2354.5,2.3079]
[1725968007498,3.24541635,2355.1,2354.5,2.3079]
[1725968007668,0.85073164,2355.0,2354.5,2.3079]
[1725968008352,0.85073164,2355.0,2354.3,2.3961]
[1725968008554,5.51181635,2354.9,2354.3,2.3961]
[1725968012400,2.2664,2354.9,2354.3,2.3961]
[1725968012620,2.2664,2354.9,2354.3,3.39220437]
[1725968015206,3.0,2355.0,2354.5,2.4251]
[1725968015599,5.4924,2355.2,2354.5,2.4251]
[1725968015783,6.338766,2355.2,2354.5,2.4251]
[1725968017802,3.24541635,2355.1,2354.5,2.4251]
[1725968018009,3.0,2355.0,2354.5,2.4251]
[1725968021814,2.3757,2354.9,2354.3,3.24880437]
[1725968022122,5.62111635,2354.9,2354.3,2.2527]
[1725968024214,2.3757,2354.9,2354.3,2.2527]
[1725968025511,5.62111635,2354.9,2354.3,2.2527]
[1725968029257,5.62111635,2354.9,2354.1,9.8521]
[1725968029414,6.57906981,2354.9,2354.1,5.0731]
[1725968029848,2.3216,2354.8,2354.1,5.0731]
[1725968030215,3.82051052,2354.8,2354.1,5.0731]
[1725968030464,3.82051052,2354.8,2354.2,0.50731]
[1725968031134,3.82051052,2354.8,2354.2,0.59225441]
[1725968032119,2.3216,2354.8,2354.2,0.59225441]
[1725968032581,2.3216,2354.8,2354.2,0.50731]
[1725968035457,2.3216,2354.8,2354.1,5.0731]
[1725968035458,3.82051052,2354.8,2354.1,5.0731]
[1725968035675,3.82051052,2354.8,2354.1,2.3721]
[1725968036269,1.49891052,2354.6,2353.9,9.8216]
[1725968036421,2.73962105,2354.5,2354.0,0.55]
[1725968036624,2.3543,2354.5,2354.0,0.55]
[1725968040470,1.49891052,2354.4,2353.7,21.9997]
[1725968040781,1.49891052,2354.2,2353.7,19.53]
[1725968040934,1.49891052,2354.2,2353.5,21.9997]
[1725968041381,1.49891052,2354.0,2353.5,21.9997]
[1725968041584,1.49891052,2354.0,2353.3,8.36563034]
[1725968041585,5.03004262,2354.0,2353.3,7.48]
[1725968041784,2.3484,2353.9,2353.3,7.48]
[1725968042751,5.2523,2354.1,2353.5,2.4414]
[1725968042960,5.2523,2354.1,2353.6,0.25263712]
[1725968043187,2.2523,2354.1,2353.5,2.4414]
[1725968043941,2.2523,2354.1,2353.3,9.9266]
[1725968044247,2.2523,2354.1,2353.4,0.55]
[1725968044439,2.2523,2354.1,2353.5,0.08497122]
[1725968044642,3.54121915,2354.1,2353.5,0.08497122]
[1725968044976,3.54121915,2354.1,2353.4,0.55]
[1725968045281,5.67552436,2354.0,2353.4,0.55]
[1725968045572,5.3957,2353.9,2353.3,7.48]
[1725968045877,6.09214435,2353.9,2353.3,7.48]
[1725968046247,5.3957,2353.9,2353.3,7.48]
[1725968046440,3.0,2354.0,2353.4,2.4513]
[1725968046638,5.297,2354.1,2353.4,2.4513]
[1725968046960,2.74259185,2354.1,2353.4,2.4513]
[1725968047162,3.0,2354.0,2353.4,2.4513]
[1725968050564,2.3105,2354.2,2353.5,0.63497555]
[1725968050875,2.3105,2354.2,2353.6,0.30862756]
[1725968051185,2.3105,2354.2,2353.5,0.63497555]
[1725968051380,5.3105,2354.2,2353.5,0.63497555]
[1725968051778,5.3105,2354.2,2353.6,2.2582]
[1725968052848,3.0,2354.2,2353.6,2.2582]
[1725968053193,3.38532105,2354.3,2353.6,2.2582]
[1725968053482,3.38532105,2354.3,2353.7,0.08496552]
[1725968053784,3.0,2354.3,2353.8,2.4285]
[1725968053992,5.3688,2354.4,2353.8,2.4285]
[1725968054162,3.0,2354.4,2353.8,2.70877831]
[1725968054484,7.51392176,2354.6,2353.8,2.70877831]
[1725968054485,3.0,2354.5,2354.0,2.3664]
[1725968054686,3.0,2354.5,2354.1,0.24513582]
[1725968054858,5.4907,2354.6,2354.0,2.3664]
[1725968055063,10.51392176,2354.6,2354.0,2.3664]
[1725968055963,5.4907,2354.6,2354.0,2.3664]
[1725968056270,5.4907,2354.6,2354.0,2.60304]
[1725968057080,3.0,2354.5,2354.0,2.60304]
[1725968057392,2.4907,2354.6,2354.0,2.60304]
[1725968057898,3.0,2354.7,2354.0,2.60304]
[1725968058482,3.0,2354.7,2354.1,0.260304]
[1725968058998,3.0,2354.7,2354.2,2.3627]
[1725968059360,5.2811,2354.8,2354.2,2.3627]
[1725968060852,8.53072436,2354.8,2354.2,2.3627]
[1725968062970,10.30432176,2354.8,2354.2,2.3627]
[1725968063385,8.53072436,2354.8,2354.2,2.3627]
[1725968063569,10.30432176,2354.8,2354.2,2.3627]
[1725968063905,8.53072436,2354.8,2354.2,2.3627]
[1725968065208,8.53072436,2354.8,2354.2,4.56046437]
[1725968068205,1.49891949,2354.7,2354.2,4.56046437]
[1725968068390,4.49891949,2354.7,2354.3,0.08494373]
[1725968068906,1.49891949,2354.7,2354.3,0.08494373]
[1725968069102,1.49891949,2354.7,2354.2,4.56046437]
[1725968070707,3.0,2354.8,2354.3,0.54948177]
[1725968070912,1.7735974,2355.1,2354.5,2.4032]
[1725968071072,3.27251689,2355.1,2354.7,2.2557]
[1725968071411,3.0,2355.0,2354.7,2.2557]
[1725968071889,4.49891949,2355.1,2354.7,2.2557]
[1725968072296,4.49891949,2355.1,2354.7,2.48127]
[1725968072611,3.0,2355.1,2354.7,2.48127]
[1725968072801,3.0,2355.2,2354.7,2.48127]
[1725968073882,3.99810562,2355.4,2354.8,2.48622571]
[1725968074084,1.7735974,2355.5,2355.0,2.3929]
[1725968074286,3.27251689,2355.6,2355.2,2.3929]
[1725968074606,1.7735974,2355.6,2355.2,2.3929]
[1725968074906,1.7735974,2355.7,2355.2,2.3929]
[1725968076181,3.27251689,2355.8,2355.2,2.3929]
[1725968076379,3.88550966,2355.8,2355.2,2.3929]
[1725968076578,3.0,2355.7,2355.2,2.3929]
[1725968078081,6.24544426,2355.7,2355.2,2.3929]
[1725968080294,3.0,2355.7,2355.2,2.3929]
[1725968080522,3.0,2355.8,2355.3,0.23929]
[1725968085831,3.24544426,2355.7,2355.2,2.3929]
[1725968092237,3.0,2355.8,2355.2,2.3929]
[1725968095657,3.0,2355.8,2355.3,0.08490524]
[1725968095853,3.0,2355.8,2355.3,2.436]
[1725968096160,2.21694255,2356.2,2355.1,0.0849029]
[1725968096161,3.0,2356.0,2355.5,2.436]
[1725968096370,1.7735974,2356.2,2355.4,0.87849946]
[1725968096371,4.7735974,2356.2,2355.7,2.436]
[1725968096545,4.7735974,2356.2,2355.7,2.6796]
[1725968096862,4.7735974,2356.2,2355.7,2.436]
[1725968097217,3.24544426,2356.1,2355.7,2.436]
[1725968097559,3.0,2356.0,2355.7,2.436]
[1725968098133,4.49728492,2356.0,2355.7,2.436]
[1725968098351,1.49728492,2356.0,2355.7,2.436]
[1725968103186,3.0,2356.1,2355.7,2.436]
[1725968103335,1.7735974,2356.2,2355.8,2.55089329]
[1725968103545,3.34429202,2356.4,2355.8,2.55089329]
[1725968103740,3.34429202,2356.4,2355.8,2.83119155]
[1725968104553,1.49728492,2356.2,2355.8,2.74629826]
[1725968104879,1.49728492,2356.2,2355.8,2.466]
[1725968112401,6.34429202,2356.4,2355.8,2.466]
[1725968113688,1.49728492,2356.2,2355.8,2.466]
[1725968113994,1.49728492,2356.2,2355.8,4.6656]
[1725968114156,6.34429202,2356.4,2355.9,2.3634]
[1725968114562,6.34429202,2356.4,2355.9,2.44828409]
[1725968114793,6.34429202,2356.4,2355.9,2.82818841]
[1725968115665,6.34429202,2356.4,2355.9,2.91307065]
[1725968115892,1.7735974,2356.3,2355.9,2.91307065]
[1725968116256,6.34429202,2356.4,2355.9,2.91307065]
[1725968116455,6.34429202,2356.4,2356.1,2.35]
[1725968116456,1.7735974,2356.3,2356.1,2.35]
[1725968116767,6.34429202,2356.4,2356.1,2.35]
[1725968118651,6.34429202,2356.4,2355.7,2.4578]
[1725968118857,6.34429202,2356.4,2355.8,0.55]
[1725968119254,6.34429202,2356.4,2355.9,2.418]
[1725968122993,6.34429202,2356.4,2356.0,0.08488152]
[1725968123238,6.34429202,2356.4,2356.1,2.329]
[1725968124396,4.57069462,2356.4,2356.1,2.329]
[1725968125104,6.34429202,2356.4,2356.1,2.329]
[1725968125299,4.8470071,2356.4,2356.1,2.329]
[1725968125615,3.0734097,2356.4,2356.1,2.329]
[1725968125803,1.8470071,2356.4,2356.1,2.329]
[1725968126009,4.8470071,2356.4,2356.1,2.329]
[1725968126228,1.8470071,2356.4,2356.1,2.329]
[1725968126533,1.57069462,2356.4,2356.1,2.329]
[1725968126714,1.49728492,2356.2,2355.8,2.8415]
[1725968126943,3.34429202,2356.4,2355.8,2.8415]
[1725968127928,1.57069462,2356.4,2355.8,2.8415]
[1725968128135,3.34429202,2356.4,2355.9,2.50725]
[1725968128534,3.34429202,2356.4,2355.8,2.8415]
[1725968130746,1.57069462,2356.4,2355.8,2.8415]
[1725968131749,3.34429202,2356.4,2355.8,2.8415]
[1725968131956,1.57069462,2356.4,2356.0,2.3658]
[1725968132753,1.8470071,2356.4,2356.0,2.3658]
[1725968132958,0.0734097,2356.4,2356.0,2.3658]
[1725968134616,1.8470071,2356.4,2356.0,2.3658]
[1725968134823,0.0734097,2356.4,2356.0,2.3658]
[1725968135219,1.57069462,2356.4,2356.0,2.3658]
[1725968135652,0.0734097,2356.4,2356.0,2.3658]
[1725968135852,0.0734097,2356.4,2356.0,2.65738]
[1725968136759,0.0734097,2356.4,2356.2,2.3408]
[1725968137268,0.0734097,2356.4,2356.3,0.08487051]
[1725968137469,0.0734097,2356.4,2356.2,2.42567028]
[1725968137634,0.0734097,2356.4,2356.3,0.37395028]
[1725968137834,0.0734097,2356.4,2356.3,0.92395028]
[1725968138733,0.0734097,2356.4,2356.3,0.83908]
[1725968139128,0.0734097,2356.4,2356.0,0.29158]
[1725968139328,0.0734097,2356.4,2356.1,2.42567506]
[1725968139525,0.0734097,2356.4,2356.2,0.55]
[1725968140258,0.0734097,2356.4,2356.3,2.34]
[1725968140448,0.0734097,2356.4,2356.3,2.89]
[1725968140763,0.0734097,2356.4,2356.3,3.179]
[1725968143649,0.0734097,2356.4,2356.3,0.839]
[1725968143850,0.0734097,2356.4,2356.3,0.55]
[1725968145690,0.0734097,2356.4,2356.3,0.63486725]
[1725968146248,0.0734097,2356.4,2356.3,0.55]
[1725968150305,0.0734097,2356.4,2356.3,0.63486762]
[1725968150489,0.0734097,2356.4,2356.3,0.55]
[1725968151202,0.0734097,2356.4,2356.3,0.83037]
[1725968151576,0.0734097,2356.4,2356.3,0.91523776]
[1725968152911,0.0734097,2356.4,2356.3,0.83037]
[1725968158645,0.0734097,2356.4,2356.3,0.55]
[1725968158864,0.0734097,2356.4,2356.1,0.55]
[1725968163131,0.0734097,2356.4,2355.8,2.3969]
[1725968163132,2.4016,2356.3,2355.8,2.3969]
[1725968163449,2.4016,2356.3,2355.7,3.0]
[1725968163648,3.89888492,2356.3,2355.6,2.3969]
[1725968163834,5.67248232,2356.3,2355.6,2.3969]
[1725968165060,5.67248232,2356.3,2355.7,0.55]
[1725968165262,5.67248232,2356.3,2355.8,0.29469]
[1725968165263,4.1751974,2356.3,2355.8,0.29469]
[1725968165477,4.1751974,2356.3,2355.9,0.55]
[1725968166071,1.7735974,2356.3,2356.0,2.55668227]
[1725968166384,1.7735974,2356.3,2356.0,2.96166572]
[1725968167034,1.7735974,2356.3,2356.0,0.48986572]
[1725968167259,2.2766,2356.2,2355.9,0.55]
[1725968167443,2.2766,2356.2,2355.7,0.55]
[1725968167648,2.2766,2356.2,2355.7,1.00371849]
[1725968169144,2.2766,2356.2,2355.7,0.55]
[1725968169365,2.2766,2356.2,2355.5,0.55]
[1725968169649,3.77388492,2356.2,2355.4,2.3568]
[1725968169873,4.33597412,2356.2,2355.4,3.26361608]
[1725968170787,6.10957152,2356.2,2355.4,3.26361608]
[1725968170984,6.10957152,2356.2,2355.5,0.55]
[1725968172671,2.39309137,2356.1,2355.5,0.55]
[1725968172853,4.16668877,2356.1,2355.5,0.55]
[1725968173059,2.39309137,2356.1,2355.5,1.2259505]
[1725968174463,4.16668877,2356.1,2355.5,1.2259505]
[1725968175279,2.39309137,2356.1,2355.5,1.2259505]
[1725968178264,2.39309137,2356.1,2355.5,0.55]
[1725968181303,2.4013,2355.7,2355.0,3.86180397]
[1725968181488,2.4013,2355.7,2355.1,0.96514765]
[1725968182289,2.4013,2355.7,2355.0,2.4132]
[1725968182873,2.4013,2355.7,2355.1,0.55]
[1725968185790,2.4705,2355.5,2354.9,3.55]
[1725968185994,2.4705,2355.5,2354.9,4.48058367]
[1725968186718,2.4705,2355.5,2355.0,0.08491027]
[1725968186889,2.4705,2355.5,2355.1,0.55]
[1725968187091,2.4705,2355.5,2355.2,0.08490953]
[1725968190321,2.4705,2355.5,2355.1,0.55]
[1725968190626,2.4705,2355.5,2355.0,0.55]
[1725968190829,2.4705,2355.5,2355.0,1.34030686]
[1725968191033,2.4705,2355.5,2355.0,0.55]
[1725968191188,2.4705,2355.5,2354.9,0.55]
[1725968191388,2.4705,2355.5,2354.8,0.55]
[1725968191688,2.4705,2355.5,2354.8,0.99972849]
[1725968193477,2.4705,2355.5,2354.9,19.53]
[1725968193685,2.4705,2355.5,2355.0,20.08]
[1725968194011,2.4705,2355.5,2355.0,19.53]
[1725968194214,2.4705,2355.5,2354.9,19.53]
[1725968194402,2.4705,2355.5,2355.0,2.68788796]
[1725968195087,2.4705,2355.5,2355.0,2.60297285]
[1725968195727,1.49728492,2355.4,2355.0,0.55]
[1725968195895,1.49728492,2355.4,2354.7,19.53]
[1725968195896,2.3311,2355.3,2354.9,0.55]
[1725968196087,2.3311,2355.3,2354.8,2.74741]
[1725968196287,2.3311,2355.3,2354.8,0.55]
[1725968196596,2.3311,2355.3,2354.6,0.55]
[1725968197393,2.3311,2355.3,2354.6,2.04728492]
[1725968197610,2.3311,2355.3,2354.7,2.15772849]
[1725968197810,2.3311,2355.3,2354.8,0.55]
[1725968200131,3.0,2355.5,2354.3,2.0]
[1725968200132,2.3941,2355.1,2354.4,19.53]
[1725968200424,2.3941,2355.1,2354.3,2.3292]
[1725968200425,2.3941,2354.9,2354.5,19.53]
[1725968200990,2.3941,2354.7,2354.5,19.53]
[1725968202226,2.3941,2354.7,2354.3,19.53]
[1725968206253,2.3941,2354.7,2354.0,20.01270153]
[1725968206450,2.3941,2354.7,2354.1,0.55]
[1725968215254,2.3548,2354.6,2354.1,0.55]
[1725968215558,2.3548,2354.5,2354.1,0.55]
[1725968215711,2.3548,2354.5,2354.0,0.55]
[1725968216313,3.24715396,2354.4,2353.9,0.00921958]
[1725968216615,2.2823,2354.2,2353.9,0.00921958]
[1725968216912,3.24715396,2354.2,2353.9,0.00921958]
[1725968217146,2.3089,2354.1,2353.9,0.00921958]
[1725968217337,5.55605396,2354.0,2353.9,0.00921958]
[1725968217539,8.55605396,2354.0,2353.9,0.00921958]
[1725968217775,9.41165936,2354.0,2353.9,0.00921958]
[1725968221567,9.41165936,2354.0,2353.5,0.00612358]
[1725968221568,2.3676,2353.9,2353.5,0.00612358]
[1725968221769,5.61475396,2353.6,2353.5,0.00612358]
[1725968222175,5.61475396,2353.6,2352.9,7.48]
[1725968222176,5.61475396,2353.0,2352.9,7.48]
[1725968222492,2.3676,2352.9,2352.1,7.48]
[1725968222642,3.24715396,2352.7,2351.7,2.4815]
[1725968223291,2.3676,2352.6,2351.7,2.4815]
[1725968223660,2.3676,2352.6,2351.7,2.99309399]
[1725968225081,2.3676,2352.6,2351.8,0.55]
[1725968227501,2.2905,2352.0,2351.6,7.48]
[1725968227785,4.28,2353.0,2351.0,2.37330425]
[1725968227786,3.24715396,2351.7,2351.0,7.48080425]
[1725968227992,0.23676,2352.5,2351.0,7.48080425]
[1725968227993,3.24715396,2351.3,2351.0,0.00080425]
[1725968228145,3.24715396,2351.1,2351.0,0.00080425]
[1725968228545,6.24715396,2351.1,2351.0,0.00080425]
[1725968228779,3.0,2351.1,2351.0,0.00080425]
[1725968228991,2.85,2351.8,2351.0,0.00080425]
[1725968228992,3.24715396,2351.7,2351.0,0.00080425]
[1725968229171,3.6097154,2351.7,2351.0,0.00080425]
[1725968229486,6.85686936,2351.7,2351.0,0.00080425]
[1725968230158,3.24715396,2351.5,2351.0,0.00080425]
[1725968230574,6.85686936,2351.7,2351.0,0.00080425]
[1725968230965,2.4117,2351.6,2351.0,0.00080425]
[1725968232330,3.24715396,2351.5,2351.0,0.00080425]
[1725968232491,3.24715396,2351.3,2351.0,0.00080425]